[Event "98th Caplin Hastings Masters 2024-25"]
[Site "Hastings"]
[Date "2025.01.02"]
[Round "8.17"]
[White "Adams, Henry"]
[Black "Golding, James"]
[Result "1/2-1/2"]
[ECO "E05"]
[WhiteElo "1991"]
[BlackElo "2203"]
[Annotator "RC"]
[PlyCount "139"]
[EventDate "2024.12.23"]
[EventType "swiss"]
[EventCountry "ENG"]
[SourceTitle "playchess.com"]
[Source "ChessBase"]
[SourceQuality "1"]
[TimeControl "5400+30"]

1. d4 {[%emt 0:00:03]} d5 {[%emt 0:00:02]} 2. Nf3 {[%emt 0:00:04]} Nf6 {[%emt 0:00:04]} 3. g3 {[%emt 0:00:03]} e6 {[%emt 0:00:02]} 4. Bg2 {[%emt 0:00:04]} Be7 {[%emt 0:00:03]} 5. O-O {[%emt 0:00:06]} O-O {[%emt 0:00:02]} 6. c4 {[%emt 0:00:04]} dxc4 {[%emt 0:00:02]} 7. Qc2 {[%emt 0:00:06]} a6 {[%emt 0:00:02]} 8. a4 {[%emt 0:00:05]} Bd7 {[%emt 0:00:03]} 9. Qxc4 {[%emt 0:00:05]} Bc6 {[%emt 0:00:03]} 10. Bg5 {[%emt 0:00:05]} Bd5 {[%emt 0:00:09]} 11. Qc2 {[%emt 0:01:09]} Be4 {[%emt 0:00:04]} 12. Qc1 {[%emt 0:01:58]} Nc6 {[%emt 0:02:35]} 13. Nbd2 {[%emt 0:03:20]} Bg6 {[%emt 0:02:49]} 14. e3 {[%emt 0:06:24]} Rb8 {[%emt 0:04:17]} 15. Nc4 {[%emt 0:16:19]} Be4 {[%emt 0:05:45]} 16. Rd1 {[%emt 0:10:24]} Nb4 {[%emt 0:02:46]} 17. Qc3 {[%emt 0:17:06]} Nfd5 {[%emt 0:21:49]} 18. Bxe7 {[%emt 0:00:20]} Qxe7 {[%emt 0:00:23]} 19. Qd2 {[%emt 0:01:07]} Rbc8 {[%emt 0:04:16]} 20. Ne1 {[%emt 0:04:39]} Bxg2 {[%emt 0:02:27]} 21. Kxg2 {[%emt 0:01:54]} c5 {[%emt 0:03:12]} 22. e4 {[%emt 0:12:43]} Nf6 {[%emt 0:00:54]} 23. e5 {[%emt 0:01:01]} Nfd5 {[%emt 0:04:27]} 24. Nd6 {[%emt 0:00:55]} Rc6 {[%emt 0:00:56]} 25. dxc5 {[%emt 0:01:42]} Rxc5 {[%emt 0:00:34]} 26. Rac1 {[%emt 0:04:16]} Rxc1 {[%emt 0:00:24]} 27. Rxc1 {[%emt 0:00:07]} Nc6 {[%emt 0:00:03]} 28. Nc4 {[%emt 0:05:59]} Rd8 {[%emt 0:00:32]} 29. Nf3 {[%emt 0:01:22]} Nb6 {[%emt 0:11:34]} 30. Qc2 {[%emt 0:01:12]} Nxc4 {[%emt 0:00:17]} 31. Qxc4 {[%emt 0:00:04]} h6 {[%emt 0:00:36]} 32. h4 {[%emt 0:00:39]} Rd5 {[%emt 0:00:32]} 33. Rc3 {[%emt 0:01:17]} Qd7 {[%emt 0:00:48]} 34. b4 {[%emt 0:00:45]} Qd8 {[%emt 0:11:12]} 35. b5 {[%emt 0:01:57]} axb5 {[%emt 0:00:20]} 36. axb5 {[%emt 0:00:01]} Nxe5 {[%emt 0:00:23]} 37. Nxe5 {[%emt 0:00:06]} Rxe5 {[%emt 0:00:06]} 38. Qc8 {[%emt 0:00:21]} Qxc8 {[%emt 0:00:13]} 39. Rxc8+ {[%emt 0:00:02]} Kh7 {[%emt 0:00:10]} 40. Rc7 {[%emt 0:00:10]} Rxb5 {[%emt 0:00:08]} 41. Rxf7 {[%emt 0:00:03]} Kg6 {[%emt 0:00:20]} 42. Rc7 {[%emt 0:00:23]} Rb3 {[%emt 0:01:52]} 43. g4 {[%emt 0:01:11]} e5 {[%emt 0:08:33]} 44. f3 {[%emt 0:00:39]} Kf6 {[%emt 0:05:58]} 45. Kf2 {[%emt 0:00:19]} g5 {[%emt 0:05:55]} 46. h5 {[%emt 0:00:21]} e4 {[%emt 0:00:59]} 47. fxe4 {[%emt 0:01:05]} Ke5 {[%emt 0:00:07]} 48. Rh7 {[%emt 0:00:43]} Kxe4 {[%emt 0:01:28]} 49. Rxh6 {[%emt 0:00:06]} Kf4 {[%emt 0:00:10]} 50. Rg6 {[%emt 0:01:24]} Rb2+ {[%emt 0:01:52]} 51. Kg1 {[%emt 0:00:25]} Kg3 {[%emt 0:00:19]} 52. Rf6 {[%emt 0:01:38]} Rg2+ {[%emt 0:00:48]} 53. Kf1 {[%emt 0:01:11]} Rh2 {[%emt 0:00:53]} 54. Kg1 {[%emt 0:01:08]} Rg2+ {[%emt 0:00:32]} 55. Kf1 {[%emt 0:00:05]} Rc2 {[%emt 0:00:56]} 56. Rb6 {[%emt 0:00:50]} Rc1+ {[%emt 0:01:23]} 57. Ke2 {[%emt 0:00:06]} Rc4 {[%emt 0:00:47]} 58. Rxb7 {[%emt 0:00:24]} Rxg4 {[%emt 0:00:31]} 59. Kf1 {[%emt 0:00:33]} Kh2 {[%emt 0:00:19]} 60. Rg7 {[%emt 0:01:24]} Rf4+ {[%emt 0:00:51]} 61. Ke2 {[%emt 0:00:04]} g4 {[%emt 0:00:22]} 62. h6 {[%emt 0:00:43]} g3 {[%emt 0:00:09]} 63. h7 {[%emt 0:00:05]} Rh4 {[%emt 0:00:55]} 64. Kf3 {[%emt 0:00:26]} Rh3 {[%emt 0:00:21]} 65. Kf4 {[%emt 0:02:11]} g2 {[%emt 0:00:32]} 66. Kf5 {[%emt 0:00:24]} Rh6 {[%emt 0:00:56]} 67. Kg5 {[%emt 0:00:40]} Rh3 {[%emt 0:00:37]} 68. Kf6 {[%emt 0:00:15]} Kg1 {[%emt 0:00:27]} 69. Rxg2+ {[%emt 0:00:09]} Kxg2 {[%emt 0:00:05]} 70. Kg7 {[%emt 0:00:03]} 1/2-1/2

[Event "98th Caplin Hastings Masters 2024-25"]
[Site "Hastings"]
[Date "2025.01.02"]
[Round "8.18"]
[White "Briem, Benedikt"]
[Black "Ahn, Sungmin"]
[Result "1-0"]
[ECO "A62"]
[WhiteElo "2132"]
[BlackElo "1926"]
[Annotator "NA RC"]
[PlyCount "79"]
[EventDate "2024.12.23"]
[EventType "swiss"]
[EventCountry "ENG"]
[SourceTitle "playchess.com"]
[Source "ChessBase"]
[SourceQuality "1"]
[TimeControl "5400+30"]

1. d4 {[%emt 0:05:41]} Nf6 {[%emt 0:00:01]} 2. c4 {[%emt 0:00:07]} e6 {[%emt 0:00:01]} 3. g3 {[%emt 0:00:12]} c5 {[%emt 0:00:02]} 4. d5 {[%emt 0:00:25]} exd5 {[%emt 0:00:04]} 5. cxd5 {[%emt 0:00:05]} g6 {[%emt 0:00:05]} 6. Bg2 {[%emt 0:00:09]} d6 {[%emt 0:00:08]} 7. Nc3 {[%emt 0:00:05]} Bg7 {[%emt 0:00:02]} 8. Nf3 {[%emt 0:00:07]} O-O {[%emt 0:00:05]} 9. O-O {[%emt 0:00:05]} Re8 {[%emt 0:00:13]} 10. Bf4 {[%emt 0:02:01]} h6 {[%emt 0:03:35]} 11. Qc1 {[%emt 0:01:49]} g5 {[%emt 0:00:08]} 12. Bd2 {[%emt 0:05:50]} Bf5 {[%emt 0:00:33]} 13. h4 {[%emt 0:05:05]} g4 {[%emt 0:02:17]} 14. Nh2 {[%emt 0:04:38]} Kh7 {[%emt 0:02:00]} 15. Re1 {[%emt 0:05:47]} Nbd7 {[%emt 0:07:12]} 16. e4 {[%emt 0:01:02]} Bg6 {[%emt 0:00:29]} 17. Qd1 {[%emt 0:00:28]} Ne5 {[%emt 0:03:35]} 18. Bf4 {[%emt 0:00:17]} Qd7 {[%emt 0:01:59]} 19. a4 {[%emt 0:02:27]} c4 {[%emt 0:07:33]} 20. Bxe5 {[%emt 0:01:32]} Rxe5 {[%emt 0:00:02]} 21. Nf1 {[%emt 0:00:43]} Rc8 {[%emt 0:11:44]} 22. Nd2 {[%emt 0:01:29]} a6 {[%emt 0:04:59]} 23. a5 {[%emt 0:01:29]} Rc5 {[%emt 0:00:22]} 24. Ra4 {[%emt 0:03:22]} Nxd5 {[%emt 0:09:53]} 25. Nxc4 {[%emt 0:07:10]} Nxc3 {[%emt 0:02:07]} 26. bxc3 {[%emt 0:01:08]} Re7 {[%emt 0:12:23]} 27. Nb6 {[%emt 0:03:32]} Qe6 {[%emt 0:00:51]} 28. c4 {[%emt 0:00:58]} Bc3 {[%emt 0:01:24]} 29. Re3 {[%emt 0:05:36]} Bxa5 {[%emt 0:01:14]} 30. Nd5 {[%emt 0:00:23]} Re8 {[%emt 0:10:32]} 31. Qb3 {[%emt 0:08:51]} Rb8 {[%emt 0:04:09]} 32. Nf4 {[%emt 0:14:49]} Qf6 {[%emt 0:05:51]} 33. Nd3 {[%emt 0:01:27]} Rh5 {[%emt 0:00:46]} 34. e5 {[%emt 0:02:25]} Qd8 {[%emt 0:00:26]} 35. exd6 {[%emt 0:03:32]} Qxd6 {[%emt 0:00:40]} 36. c5 {[%emt 0:01:24]} Qc7 {[%emt 0:01:56]} 37. Be4 {[%emt 0:04:01]} f5 {[%emt 0:04:53]} 38. Bd5 {[%emt 0:00:36]} b6 {[%emt 0:01:18]} 39. c6 {[%emt 0:01:44]} Rf8 {[%emt 0:02:29]} 40. Qa3 {[%emt 0:02:46]} 1-0

[Event "98th Caplin Hastings Masters 2024-25"]
[Site "Hastings"]
[Date "2025.01.02"]
[Round "8.19"]
[White "Kolani, Arjun"]
[Black "Sasikumar, Srivathsan"]
[Result "1-0"]
[ECO "B36"]
[WhiteElo "2131"]
[BlackElo "1904"]
[Annotator "NA RC"]
[PlyCount "107"]
[EventDate "2024.12.23"]
[EventType "swiss"]
[EventCountry "ENG"]
[SourceTitle "playchess.com"]
[Source "ChessBase"]
[SourceQuality "1"]
[TimeControl "5400+30"]

1. e4 {[%emt 0:00:05]} c5 {[%emt 0:00:21]} 2. Nf3 {[%emt 0:00:05]} Nc6 {[%emt 0:00:21]} 3. d4 {[%emt 0:00:12]} cxd4 {[%emt 0:00:08]} 4. Nxd4 {[%emt 0:00:05]} g6 {[%emt 0:00:09]} 5. c4 {[%emt 0:00:04]} Nf6 {[%emt 0:00:15]} 6. Nc3 {[%emt 0:00:29]} d6 {[%emt 0:00:08]} 7. f3 {[%emt 0:01:09]} Nxd4 {[%emt 0:00:45]} 8. Qxd4 {[%emt 0:00:12]} Bg7 {[%emt 0:00:04]} 9. Be3 {[%emt 0:00:17]} O-O {[%emt 0:01:04]} 10. Qd2 {[%emt 0:00:16]} Be6 {[%emt 0:01:38]} 11. Rc1 {[%emt 0:00:43]} a6 {[%emt 0:02:31]} 12. b3 {[%emt 0:03:40]} Rc8 {[%emt 0:04:22]} 13. Be2 {[%emt 0:07:23]} Qa5 {[%emt 0:03:48]} 14. O-O {[%emt 0:12:32]} Rfe8 {[%emt 0:01:55]} 15. Rc2 {[%emt 0:10:11]} Bd7 {[%emt 0:09:37]} 16. Rfc1 {[%emt 0:08:48]} h5 {[%emt 0:10:58]} 17. Rb1 {[%emt 0:11:13]} Qc7 {[%emt 0:09:12]} 18. Rcc1 {[%emt 0:06:14]} b6 {[%emt 0:10:47]} 19. Bf1 {[%emt 0:04:04]} Qb7 {[%emt 0:04:43]} 20. a4 {[%emt 0:04:42]} Be6 {[%emt 0:03:34]} 21. Ne2 {[%emt 0:06:39]} Red8 {[%emt 0:03:09]} 22. a5 {[%emt 0:03:33]} bxa5 {[%emt 0:11:48]} 23. Qxa5 {[%emt 0:00:08]} Nd7 {[%emt 0:01:56]} 24. Nd4 {[%emt 0:04:37]} Ne5 {[%emt 0:00:28]} 25. Nxe6 {[%emt 0:00:24]} fxe6 {[%emt 0:00:06]} 26. c5 {[%emt 0:02:42]} Ra8 {[%emt 0:05:15]} 27. cxd6 {[%emt 0:02:58]} Rxd6 {[%emt 0:00:59]} 28. Qc7 {[%emt 0:06:09]} Rd7 {[%emt 0:01:04]} 29. Qxb7 {[%emt 0:02:15]} Rxb7 {[%emt 0:00:07]} 30. f4 {[%emt 0:00:18]} Ng4 {[%emt 0:00:21]} 31. Bc5 {[%emt 0:00:40]} Rc7 {[%emt 0:01:09]} 32. e5 {[%emt 0:00:42]} Bh6 {[%emt 0:01:29]} 33. g3 {[%emt 0:00:54]} Nxe5 {[%emt 0:02:06]} 34. Ba3 {[%emt 0:02:02]} Rxc1 {[%emt 0:02:27]} 35. Rxc1 {[%emt 0:01:02]} Nf3+ {[%emt 0:00:31]} 36. Kg2 {[%emt 0:00:28]} Nd2 {[%emt 0:00:54]} 37. Bxe7 {[%emt 0:00:22]} Nxb3 {[%emt 0:03:44]} 38. Rc7 {[%emt 0:00:18]} Bg7 {[%emt 0:02:19]} 39. Bc4 {[%emt 0:00:42]} Nd4 {[%emt 0:00:21]} 40. Bc5 {[%emt 0:00:31]} Nf5 {[%emt 0:00:09]} 41. Bxe6+ {[%emt 0:00:11]} Kh8 {[%emt 0:00:03]} 42. Bf7 {[%emt 0:00:26]} Nd4 {[%emt 0:02:49]} 43. Rd7 {[%emt 0:00:29]} Nb5 {[%emt 0:01:10]} 44. Bxg6 {[%emt 0:00:22]} a5 {[%emt 0:00:24]} 45. Bd3 {[%emt 0:01:10]} Nc3 {[%emt 0:00:59]} 46. f5 {[%emt 0:00:31]} a4 {[%emt 0:00:35]} 47. Ba3 {[%emt 0:00:15]} Rb8 {[%emt 0:00:45]} 48. Be7 {[%emt 0:00:23]} Rb2+ {[%emt 0:00:30]} 49. Kf3 {[%emt 0:00:23]} Nd1 {[%emt 0:00:32]} 50. Rd8+ {[%emt 0:00:27]} Kh7 {[%emt 0:00:12]} 51. f6+ {[%emt 0:00:14]} Kh6 {[%emt 0:00:02]} 52. fxg7 {[%emt 0:00:25]} Kxg7 {[%emt 0:00:12]} 53. h4 {[%emt 0:00:40]} Rf2+ {[%emt 0:01:31]} 54. Ke4 {[%emt 0:00:09]} 1-0

[Event "98th Caplin Hastings Masters 2024-25"]
[Site "Hastings"]
[Date "2025.01.02"]
[Round "8.20"]
[White "Marusenko, Petr"]
[Black "Golding, Alex"]
[Result "0-1"]
[ECO "E25"]
[WhiteElo "2021"]
[BlackElo "2405"]
[Annotator "TA"]
[PlyCount "82"]
[EventDate "2024.12.23"]
[EventType "swiss"]
[EventCountry "ENG"]
[SourceTitle "playchess.com"]
[Source "ChessBase"]
[SourceQuality "1"]
[TimeControl "5400+30"]

{[%evp 15,82,1,22,29,21,-21,-23,-28,-12,-6,-8,-23,-15,-29,-17,-23,-29,-30,-15,-14,0,-5,-5,-15,-10,-35,-31,-94,-98,-146,-114,-154,-127,-341,-357,-370,-367,-340,-293,-431,-429,-417,-433,-469,-465,-532,-516,-531,-531,-704,-683,-1295,-1271,-1737,-1616,-1874,-1704,-1960,-1362,-2606,-2286,-2244,-2660,-29970,-29972,-12816,-10676,-6087,-5395]} 1. d4 {[%emt 0:00:01]} Nf6 {[%emt 0:00:12]} 2. c4 {[%emt 0:00:06]} e6 {[%emt 0:00:27]} 3. Nc3 {[%emt 0:00:05]} Bb4 {[%emt 0:00:05]} 4. f3 {[%emt 0:00:01]} d5 {[%emt 0:03:05]} 5. a3 {[%emt 0:00:06]} Bxc3+ {[%emt 0:00:04]} 6. bxc3 {[%emt 0:00:04]} c5 {[%emt 0:01:12]} 7. cxd5 {[%emt 0:00:07]} exd5 {[%emt 0:00:06]} 8. e3 {[%emt 0:00:18]} Bf5 {[%emt 0:02:14]} 9. Ne2 {[%emt 0:00:53]} Nc6 {[%emt 0:05:47]} 10. Ng3 {[%emt 0:00:39]} Bg6 {[%emt 0:00:05]} 11. Bd3 {[%emt 0:07:20]} Qa5 {[%emt 0:00:45][%csl LRc3,LRd4]} 12. Bxg6 {[%emt 0:01:18]} (12. Ne2 {keeps more tension.} cxd4 13. exd4 Nxd4 14. Bxg6 Nxe2 15. Qxe2+ Kf8 16. O-O) 12... hxg6 {[%emt 0:00:08]} 13. Bd2 {[%emt 0:00:04]} Qa6 {[%emt 0:00:30]} 14. Qe2 {[%emt 0:00:23]} Qxe2+ {[%emt 0:00:14]} 15. Kxe2 {[%emt 0:00:06]} O-O-O {[%emt 0:03:49]} 16. Rab1 {[%emt 0:04:00]} a6 {[%emt 0:03:52]} 17. Kf2 {[%emt 0:06:54]} Na5 {[%emt 0:02:37]} 18. a4 {[%emt 0:12:07]} Nc4 {[%emt 0:01:04]} 19. Bc1 $1 {[%emt 0:00:01]} Rd6 $36 {[%emt 0:01:58][%mdl 2048] Black is more active.} 20. h3 {[%emt 0:00:43]} Rb6 {[%emt 0:00:39]} 21. Rxb6 {[%emt 0:01:35]} ({White should play} 21. Ra1 $15) 21... Nxb6 $17 {[%emt 0:00:04] A dynamic duo of knights.} 22. e4 {[%emt 0:07:06]} (22. a5 $142 Nc4 23. dxc5) 22... Nxa4 {[%emt 0:01:03]} 23. Bg5 {[%emt 0:03:29]} c4 {[%emt 0:04:48]} 24. exd5 $2 {[%emt 0:11:07]} (24. e5 $17 Ne8 25. Bd2) 24... Nxd5 $19 {[%emt 0:00:46]} (24... Nxc3 25. Rc1 Ncxd5 (25... Nfxd5 $2 26. Ne4 $19) 26. Rxc4+ Kd7 27. Ne4 $19) 25. Ne4 {[%emt 0:00:07]} Kd7 {[%emt 0:00:56] Prevents Nd6} ({Weaker is} 25... Ndxc3 26. Nd6+ Kb8 27. Nxf7 $19) (25... Naxc3 26. Rc1 Nb5 27. Rxc4+ Kb8 28. Rc5 $19) 26. Ra1 {[%emt 0:06:49]} Ndxc3 {[%emt 0:01:22]} (26... Naxc3 27. Rc1 Na4 28. Rxc4 $11) 27. Bd2 {[%emt 0:02:02]} (27. Nxc3 $142 Nxc3 28. Rc1) 27... Nxe4+ {[%emt 0:00:09]} 28. fxe4 {[%emt 0:00:02][%mdl 4096] Endgame KRB-KRN. Black is two pawns up.} b5 {[%emt 0:00:28]} 29. Bb4 {[%emt 0:00:20]} f5 {[%emt 0:00:26]} 30. Ke3 {[%emt 0:00:55]} Rh4 {[%emt 0:00:14]} 31. exf5 {[%emt 0:00:51]} gxf5 {[%emt 0:00:06]} 32. Bc5 {[%emt 0:00:47]} Kc6 {[%emt 0:00:25]} 33. Ba7 {[%emt 0:00:08]} Kb7 {[%emt 0:01:21]} 34. Bc5 {[%emt 0:01:06]} Nxc5 {[%emt 0:00:06]} 35. dxc5 {[%emt 0:00:04] KR-KR. Black is two pawns up.} c3 {[%emt 0:00:08] ...Rc4 would now be deadly.} 36. c6+ {[%emt 0:00:30]} Kxc6 {[%emt 0:00:29]} 37. Rxa6+ {[%emt 0:00:02]} Kc5 {[%emt 0:00:08]} 38. Kd3 {[%emt 0:00:16]} Rc4 {[%emt 0:00:44] ( -> ...c2)} 39. Kc2 {[%emt 0:00:04]} Kb4 {[%emt 0:00:22]} 40. Ra7 {[%emt 0:00:29]} Rf4 {[%emt 0:00:07] ( -> ...Rf2+)} 41. Rxg7 {[%emt 0:00:09]} Rf2+ {[%emt 0:00:03]} 0-1

[Event "98th Caplin Hastings Masters 2024-25"]
[Site "Hastings"]
[Date "2025.01.02"]
[Round "8.21"]
[White "Boswell, Jacob Connor"]
[Black "Verbytski, Oleg"]
[Result "0-1"]
[ECO "B53"]
[WhiteElo "2277"]
[BlackElo "2033"]
[Annotator "TA"]
[PlyCount "64"]
[EventDate "2024.12.23"]
[EventType "swiss"]
[EventCountry "ENG"]
[SourceTitle "playchess.com"]
[Source "ChessBase"]
[SourceQuality "1"]
[TimeControl "5400+30"]

{[%evp 21,64,-10,24,33,43,41,45,38,65,51,51,0,18,-16,0,-112,-112,-235,-211,-301,-310,-366,-291,-448,-450,-549,-556,-544,-442,-427,-424,-518,-383,-632,-531,-677,-679,-821,-807,-818,-827,-1337,-1302,-29986,-29987]} 1. e4 {[%emt 0:07:34]} c5 {[%emt 0:00:09]} 2. Nf3 {[%emt 0:00:05]} d6 {[%emt 0:00:05]} 3. d4 {[%emt 0:00:05]} cxd4 {[%emt 0:00:10]} 4. Qxd4 {[%emt 0:00:07]} Nc6 {[%emt 0:00:13]} 5. Bb5 {[%emt 0:00:12]} Bd7 {[%emt 0:00:07]} 6. Bxc6 {[%emt 0:00:07]} Bxc6 {[%emt 0:00:52]} 7. Nc3 {[%emt 0:00:07]} Nf6 {[%emt 0:00:50]} 8. Bg5 {[%emt 0:00:13]} e6 {[%emt 0:02:27]} 9. O-O-O {[%emt 0:00:11]} Be7 {[%emt 0:02:08]} 10. Qd3 {[%emt 0:00:09]} Qa5 {[%emt 0:02:56]} 11. h4 {[%emt 0:00:23]} O-O {[%emt 0:08:21]} 12. Nd4 $1 {[%emt 0:02:16]} Rfd8 {[%emt 0:04:01]} 13. Kb1 {[%emt 0:02:39]} Rac8 {[%emt 0:02:42]} 14. f4 {[%emt 0:08:16][%cal Og2g4,Bf2f4,Bf4f5][%mdl 32]} a6 {[%emt 0:09:35]} 15. f5 {[%emt 0:16:34]} Bd7 {[%emt 0:07:07]} 16. Nce2 {[%emt 0:13:10]} Re8 {[%emt 0:04:26]} 17. c3 {[%emt 0:25:55]} (17. fxe6 {simplifies} fxe6 18. Nc3 Qc7 19. Nf3) 17... b5 {[%emt 0:15:04]} 18. e5 {[%emt 0:04:32]} dxe5 $17 {[%emt 0:03:40]} 19. Nb3 {[%emt 0:00:43] [#]} (19. Bxf6 $17 Bxf6 20. fxe6 (20. Nb3 $2 Qb6 $19) 20... Rxe6 (20... Bxe6 21. Nxe6 Rxe6 22. Qe4 $17) (20... fxe6 21. Nb3 $17) 21. Nxe6 (21. Nb3 $2 Qb6 $19) 21... Bxe6 22. Nc1) 19... Qb6 $1 $19 {[%emt 0:01:42]} (19... e4 $2 20. Qxd7 (20. Nxa5 exd3 21. Rxd3 exf5 $17) 20... Qb6 21. Qd4 $18) 20. Bxf6 {[%emt 0:07:21]} (20. Ng3) 20... Bxf6 {[%emt 0:00:14]} 21. g4 {[%emt 0:00:01]} ({Of course not} 21. Qxd7 Rcd8 22. fxe6 Rxe6 $19 (22... Rxd7 $2 23. exd7 Rd8 24. Rd2 $19)) 21... Rcd8 {[%emt 0:04:10]} 22. Qc2 {[%emt 0:02:11]} (22. fxe6 {keeps fighting.} Bxe6 23. Qg3) 22... exf5 {[%emt 0:02:29]} 23. g5 {[%emt 0:00:48]} Bc6 {[%emt 0:02:05]} 24. Qxf5 {[%emt 0:00:54]} Bxh1 {[%emt 0:01:53]} 25. Rxh1 {[%emt 0:00:05]} Be7 {[%emt 0:00:45]} 26. Qg4 {[%emt 0:01:35]} Qe6 {[%emt 0:01:58]} 27. Qg3 $2 {[%emt 0:02:03]} (27. Qxe6 fxe6 28. Ng3) 27... Qd5 {[%emt 0:01:52]} 28. Qh2 {[%emt 0:01:28]} Rd7 {[%emt 0:01:13]} 29. Rg1 {[%emt 0:00:54]} Qe4+ {[%emt 0:01:29]} 30. Ka1 {[%emt 0:00:11]} Red8 {[%emt 0:00:15] And now ...Rd1+ would win.} 31. Qf2 {[%emt 0:02:00]} Rd1+ {[%emt 0:01:12]} 32. Nbc1 {[%emt 0:00:02]} Qc2 {[%emt 0:01:13]} 0-1

[Event "98th Caplin Hastings Masters 2024-25"]
[Site "Hastings"]
[Date "2025.01.02"]
[Round "8.22"]
[White "Schimnatkowski, Lukas"]
[Black "Rida, Ruqayyah"]
[Result "0-1"]
[ECO "C49"]
[WhiteElo "2221"]
[BlackElo "2019"]
[Annotator "RC"]
[PlyCount "124"]
[EventDate "2024.12.23"]
[EventType "swiss"]
[EventCountry "ENG"]
[SourceTitle "playchess.com"]
[Source "ChessBase"]
[SourceQuality "1"]
[TimeControl "5400+30"]

1. e4 {[%emt 0:00:03]} e5 {[%emt 0:00:04]} 2. Nc3 {[%emt 0:00:06]} Nf6 {[%emt 0:00:09]} 3. Nf3 {[%emt 0:00:06]} Nc6 {[%emt 0:00:09]} 4. Bb5 {[%emt 0:00:06]} Bb4 {[%emt 0:01:40]} 5. O-O {[%emt 0:00:12]} O-O {[%emt 0:00:36]} 6. Nd5 {[%emt 0:00:46]} Bc5 {[%emt 0:01:38]} 7. d4 {[%emt 0:03:40]} Nxd5 {[%emt 0:06:05]} 8. dxc5 {[%emt 0:00:54]} Nde7 {[%emt 0:02:41]} 9. b3 {[%emt 0:09:15]} Ng6 {[%emt 0:06:10]} 10. Qd5 {[%emt 0:10:48]} a6 {[%emt 0:05:39]} 11. Bc4 {[%emt 0:04:01]} d6 {[%emt 0:04:36]} 12. cxd6 {[%emt 0:09:15]} Be6 {[%emt 0:02:45]} 13. dxc7 {[%emt 0:06:41]} Qxc7 {[%emt 0:00:44]} 14. Qd3 {[%emt 0:01:23]} Rfd8 {[%emt 0:06:35]} 15. Qe2 {[%emt 0:02:47]} Nd4 {[%emt 0:02:14]} 16. Nxd4 {[%emt 0:08:36]} Bxc4 {[%emt 0:00:49]} 17. Qxc4 {[%emt 0:02:30]} Qxc4 {[%emt 0:00:19]} 18. bxc4 {[%emt 0:00:04]} Rxd4 {[%emt 0:00:22]} 19. c5 {[%emt 0:01:46]} Rxe4 {[%emt 0:04:54]} 20. Rb1 {[%emt 0:02:20]} Rc4 {[%emt 0:00:51]} 21. Be3 {[%emt 0:02:13]} f5 {[%emt 0:05:35]} 22. f3 {[%emt 0:00:38]} f4 {[%emt 0:03:07]} 23. Bf2 {[%emt 0:00:09]} Rd8 {[%emt 0:01:39]} 24. Rfc1 {[%emt 0:12:08]} Rd7 {[%emt 0:00:57]} 25. c3 {[%emt 0:04:10]} Ne7 {[%emt 0:02:07]} 26. Rb4 {[%emt 0:06:05]} Rxb4 {[%emt 0:01:02]} 27. cxb4 {[%emt 0:00:04]} Rd2 {[%emt 0:08:58]} 28. a4 {[%emt 0:09:21]} Rb2 {[%emt 0:12:22]} 29. Be1 {[%emt 0:00:46]} Nc6 {[%emt 0:01:43]} 30. Rd1 {[%emt 0:00:41]} Nd4 {[%emt 0:00:20]} 31. Kf1 {[%emt 0:01:54]} Rb3 {[%emt 0:03:48]} 32. Rc1 {[%emt 0:00:19]} Kf7 {[%emt 0:00:45]} 33. Bc3 {[%emt 0:01:27]} Nc6 {[%emt 0:02:54]} 34. Ke2 {[%emt 0:00:23]} Nxb4 {[%emt 0:00:44]} 35. Kd2 {[%emt 0:00:14]} Na2 {[%emt 0:01:45]} 36. Ra1 {[%emt 0:01:17]} Rxc3 {[%emt 0:00:33]} 37. Rxa2 {[%emt 0:00:05]} Rxc5 {[%emt 0:00:18]} 38. Rb2 {[%emt 0:00:38]} b5 {[%emt 0:02:36]} 39. axb5 {[%emt 0:00:15]} axb5 {[%emt 0:00:16]} 40. Kd3 {[%emt 0:00:33]} Ke6 {[%emt 0:01:31]} 41. g3 {[%emt 0:00:30]} g5 {[%emt 0:01:56]} 42. Ra2 {[%emt 0:01:28]} Rc7 {[%emt 0:00:47]} 43. Ra6+ {[%emt 0:00:31]} Kd5 {[%emt 0:00:57]} 44. Rb6 {[%emt 0:00:14]} Kc5 {[%emt 0:00:30]} 45. Re6 {[%emt 0:00:05]} Rd7+ {[%emt 0:00:35]} 46. Ke4 {[%emt 0:01:06]} b4 {[%emt 0:00:59]} 47. Rxe5+ {[%emt 0:00:28]} Kc4 {[%emt 0:00:04]} 48. Rxg5 {[%emt 0:00:19]} fxg3 {[%emt 0:01:20]} 49. Rxg3 {[%emt 0:00:22]} b3 {[%emt 0:01:02]} 50. f4 {[%emt 0:00:19]} b2 {[%emt 0:01:06]} 51. Rg1 {[%emt 0:00:05]} Rd2 {[%emt 0:00:39]} 52. h4 {[%emt 0:01:45]} Rh2 {[%emt 0:00:27]} 53. f5 {[%emt 0:00:29]} Rxh4+ {[%emt 0:00:32]} 54. Ke5 {[%emt 0:00:06]} Rh2 {[%emt 0:00:25]} 55. Rf1 {[%emt 0:00:35]} Re2+ {[%emt 0:02:23]} 56. Kd6 {[%emt 0:00:23]} Rf2 {[%emt 0:00:39]} 57. Rxf2 {[%emt 0:00:51]} b1=Q {[%emt 0:00:08]} 58. Rf4+ {[%emt 0:00:33]} Kc3 {[%emt 0:00:58]} 59. Rf3+ {[%emt 0:00:39]} Kd4 {[%emt 0:00:16]} 60. Ke7 {[%emt 0:00:32]} Qb7+ {[%emt 0:00:11]} 61. Kf8 {[%emt 0:00:04]} Qxf3 {[%emt 0:00:05]} 62. f6 {[%emt 0:00:04]} Qxf6+ {[%emt 0:00:13]} 0-1